{"text_format":"3","workbook":"xlsx","n_sheets":5,"sheets":["SxK","Konsekvens","ROS","Diagram","ROS utskrift"],"not_rendered":{"charts":2},"read":"whole","date_system":"1900"}

{"sheet":"SxK","index":0,"n_rows":21,"n_cols":2,"rows_kept":21}
["RISIKOASPEKTER","Først vurderes hvilket aspekt/område som skal analyseres"]
[null,"- Omdømme og legitimitet"]
[null,"- Etterlevelse av lover og regler"]
[null,"- Helhetlig styring og utvikling"]
[null,"- Kvalitet i tjenesteproduksjonen (fag / folk / penger)"]
[]
[null,"Mulige situasjoner, hendelser eller handlinger som kan oppstå og som kan representere en fare for tjenesten "]
["SANNSYNLIGHETSGRADERING (S)","Hvor stor sannsynlighet er det for at trusselen inntreffer?"]
[null,"1 = Lite sannsynlig (< 5 % sjangse for at hendelsen inntreffer - Aldri registrert lignende hendelse)"]
[null,"2 = Mindre sannsynlig (5 % - 25 % sjangse for at hendelsen inntreffer - Har vært registrert lignende hendelse)"]
[null,"3 = Sannsynlig (25-50 % sjangse for at hendelsen inntreffer - Har vært registrert)"]
[null,"4 = Meget sannsynlig (50-75 % sjanse for at hendelsen inntreffer - Vil kunne skje)"]
[null,"5 = Svært sannsynlig (> 75 % sjanse for at hendelsen inntreffer - Forventet å skje)"]
["KONSEKVENSGRADERING (K)","1 = Ubetydelig konsekvens"]
[null,"2 = Mindre konsekvens"]
[null,"3 = Moderat konsekvens"]
[null,"4 = Alvorlig konsekvens"]
[null,"5 = Svært alvorlig konsekvens"]
["TILTAK","Dersom risikoen (sannsynlighet multiplisert med konsekvens) er større enn 10, skal det iverksettes risikoreduserende tiltak.  Det er ikke nødvendig å iverksette tiltak dersom risikoen er mindre enn 10. Tiltakene kan være av forebyggende karakter (redusere sannsynligheten for uønsket hendelse) eller skadebegrensende tiltak (redusere mulige negative konsekvenser av uønsket hendelse). Vurder alltid tiltakets kost-/nytteeffekt. Tiltak for å kontrollere, redusere eller eliminere risiko skal holdes innenfor budsjettrammen, og stå i forhold til effekten av tiltaket. Dersom nødvendig tiltak går utover avdelingens ansvar, skal dette løftes skriftlig til virksmohetens kvalitetsråd. Dersom nødvendig tiltak går utover virksomhetens ansvar, skal dette løftes skriftlig opp til kvalitetsutvalget. Før opp når tiltaket skal være gjennomført og hvem som er ansvarlig. Dersom ikke gjennomført, skal dette registerers som avvik."]
["FORVENTET EFFEKT AV TILTAK","Sett inn forventet ny risiko etter at planlagt tiltak er gjennomført. Hvis f.eks risiko (R) er 16, og planlagt tiltak forventes å reduseres risiko til 8, settes det inn 8"]
["OPPLEVD EFFEKT AV TILTAK","Sett inn opplevd ny risiko etter tiltaket faktisk er gjennomført. Hvis f.eks risiko (R) er 16, og planlagt tiltak er vurdert å ha redusert risiko til 8, sett da inn 8. Hvis tiltaket ikke har hatt tiltenkt effekt må nytt tiltak vurderes iverksatt."]

{"sheet":"Konsekvens","index":1,"n_rows":6,"n_cols":6,"rows_kept":6,"merged":[[0,0,1,0]]}
["RISIKOASPEKTER \nKonsekvenser",1,2,3,4,5]
[null,"Ubetydlig konsekvens","Mindre konsekvens","Moderat konsekvens","Alvorlig konsekvens","Svært alvorlig konsekvens"]
["Omdømme og legitimitet","Liten virkning","Virkning for omdømme / legitimitet - lokal prat og misnøye","Tap av omdømme / legitimitet - enkelttilfelle","Alvorlig tap av eller vedvarende virkning for omdømme / legitimitet","Ødelegende virkning for omdømme / legitimitet"]
["Etterlevelse av lover og regler","Ingen brudd på lover og regler","Mindre brudd på lover og regler, men som ikke fører til anmerkninger fra tilsynsorgan eller andre sanksjoner","Brudd på lover og regler som kan føre til anmerkninger fra tilsynsorganer, men som ikke fører til andre sanksjoner fra myndigheter eller noen vesentlig risiko for erstatningsansvar","Påtalerisiko og risiko for erstatningsansvar","Påtale og betydelig erstatningsansvar"]
["Helhetlig styring og utvikling","Små variasjoner i saksbehandling eller ubetydelig avvik fra definerte utviklings-oppgaver","Mindre ulikheter i saksbehandling eller noen avvik fra definerte utviklings-oppgaver","Ulikheter i saksbehandling eller avvik fra definerte utviklings-oppgaver","Alvorlige ulikheter i saksbehandling eller alvorlige avvik fra definerte utviklings-oppgaver","Svært ulik praksis i saksbehandling eller ødeleggende avvik fra definerte utviklings-oppgaver"]
["Kvalitet i tjenesteproduksjonen, på menneskelige ressurser og økonomistyring","Ubetydelige feil og avvik som ikke påvirker kommunens innbyggere","Feil som fører til problemer for enkelte av kommunens innbyggere, eller som i liten grad påvirker de som er berørte av feilen","Feil som fører til problemer for flere av kommunens innbyggere, eller som gir de som er berørte av feilen ubehag","Alvorlige feil som fører til problemer for en stor andel av kommunens innbyggere, eller som gir de som er berørte av feilen store ubehag","Svært alvorlige feil som fører til store problemer og/eller mulig til skade for kommunens innbyggere"]

{"sheet":"ROS","index":2,"n_rows":19,"n_cols":13,"rows_kept":19,"merged":[[0,0,1,0],[0,1,1,1],[0,2,0,4],[0,7,0,9],[0,10,0,12]]}
["Områder","Hva kan gå galt?\nIdentifisert risiko","Hvor galt kan det gå? \nSannsynlighet*konsekvens\nSkala 1-5",null,null,"Kan konsekvensen gi noen muligheter?","Hva kan gjøres for å unngå at det kan gå galt?","Er det nok?\nRisiko etter iverksatte tiltak",null,null,"Oppfølging"]
[null,null,"S","K","Risiko",null,"Tiltak","S","K","Risiko","Hva","Ansvar","Frist"]
["Fremdrift/gjennomføringskraft","R1: Ikke avslutte prosjektet innenfor tidsrammen (prosjektet videreføres etter ny finansiering)",5,1,{"$f":"(C3*D3)","v":5},null,"T1: Tilstrebe større involvering fra arkivskapende enheter. T2: Søke om mer penger. ",3,1,{"$f":"H3*I3","v":3},"T1: Avtale med aktuelle enheter, gi veiledning og støtte. T2: Av-stemme ramme og finansiering mot prosjektets fremdrift. ","T1: Prosjektleder og prosjekt-medarbeider. T2: Prosjekteier og prosjektleder.","T1 og T2: Løpende."]
["Fremdrift/gjennomføringskraft","R2: Ikke avslutte prosjektet innenfor tidsrammen (prosjektet avsluttes)",3,4,12,null,"T3: Prioriteringsplan.  T4: Avviksmelding til arkivverket. T5: Utarbeide statusrapport til rådmannen medio 2021",3,3,{"$f":"H4*I4","v":9},"T3: Avlevere kritisk dokumentasjon først. T4: Kun aktuell dersom prosjektet termineres. T5: Rapportere på fremdrift og kostnader.","T3: Prosjektmedarbeider. T4: prosjektleder. T5: Prosjektleder og prosjekteier.","T3: Løpende. T4: dersom aktuelt, eno. T5: høst 2021."]
["HMS","R3: Helsemessige forhold på prosjektmedarbeidere rundt arbeidet med muggskadet arkiv.",4,4,16,null,"T6: Bruke verneutstyr. T7: Jobbe med det i begrenset tid.  T8: Rutinemessige avsjekk av helsetilstand (fast sak på møte)",1,4,4,"T6: Påse at prosjektmed-arbeidere benytter innkjøpt verneutstyr. T7: Påse at rutiner følges. T8: Avsjekk på rutinemessige møter.","T6, T7, T8: Prosjektleder.","T6, T7, T8: Ukentlig eller ved behov."]
["Økonomi","R4: Ytterligere skade på arkiv som allerede er muggskadet (tid)",1,5,5,null,"T9: Vise til T3. ",1,5,5,"T9 som T3, se over.","T9 som T3: Prosjektmedarbeider. ","T9 som T3: Løpende."]
["Fremdrift/gjennomføringskraft","R5: Bytte/tap av prosjektmedarbeidere ",5,2,10,null,"T10: Tilstrebe utvidelse av tiltaksperiode gjennom NAV. T11: Forsterke prosjektet med personell fra Dokumentsenteret. ",3,2,6,"T10: Invitere NAV til møte og avklare muligheter til forlengelse og finansiering. T11: utarbeide \"turnus\" hvor personell fra Dokumentsenteret bidrar.","T10: Prosjektleder. T11: Prosjektmedarbeider og prosjekteier.","T10 og T11: janaur 2020."]
["Fremdrift/gjennomføringskraft","R6: Tap av nøkkelpersonell (spisskompetanse, Helle og Jørn Roger)",5,4,20,null,"T12: Tilstrebe fast stilling. T13: Regulerte og forutsigbare tilsettingsforhold. T14: Planlegging av allerede varslet permisjon",2,4,8,"T12: Melde inn behov til rådmann. T13: Ny engasjements-avtale for 2020. T14: Plan ivaretas og følges opp.","T12, T13 og T14: Prosjekteier.","T12: våren 2020. T13: September 2019. T14: november 2019 og juli til november 2020."]
["Sikkerhet","R7: Informasjonssikkerhet (transport)",2,5,10,null,"T15: Avtale med transportør. T16: Ansatt deltar i transporten",1,5,5,"T15: Sørge for signert avtale. T16: avklares dersom behov.","T15 og T16: Prosjektmedarbeider.","Ved avleveringer etter plan."]
["Sikkerhet","R8: Mange har tilgang til dagens fjernarkiv",5,3,15,null,"T17: Lage skriftlig instruks. T18: Innskrenke adgangskontroll ",3,3,9,"T17: Avklare myndighetsforhold med assisterende rådmann. Kvalitetssikre instruks, iverksetting. T18: Utarbeide oversikt, sikringstiltak.","T17: Prosjektgruppen. T18: Prosjektmedarbeider og driftstjenesten.","T17: september 2019."]
["Sikkerhet","R9: Kommunen disponerer ingen godkjente spesialrom for arkiv. ",5,2,10,null,"T19: Vise til T3 T20: Flytte arkiv",5,1,5,"T19 som T3. T20: Flytte sårbare arkiver til tryggere lokasjoner når dette er gjenomførbart (tilgjengelig plass).","T19 som T3. T20: Prosjektmedarbeider.","T19 som T3: Løpende. T20: Løpende."]
["Sikkerhet","R10: Brann og/eller vannskader",2,5,10,null,"T21: Flytte arkiv til fjernarkivet. T22: Brann- og vannsikring",1,5,5,"T21: Flytte sårbare arkiver til tryggere lokasjoner når dette er gjenomførbart (tilgjengelig plass). T22: Flytte arkiver opp fra gulv, dekkes til om mulig.","T21 og T22: Prosjektmedarbeider.","T21 og T22: Løpende."]
["Økonomi","R11: Kritiske omdisponeringer av kommuneøkonomi (tap av prosjektmidler)",1,4,4,null,"T23: Vise til T3",1,4,4,"T23 som T3, se over.","T23: Prosjekteier.","T23: Dersom behov."]
["Økonomi","R12: Feilberegning av antall hyllemeter (totalt, generering av mer utgifter)",2,3,6,null,null,2,3,6,"R12: Risiko ikke mulig å kontrollere. Eventuelle avvik i beregningsgrunnlaget innarbeides i avleveringsplan.","R12: Prosjektgruppen.","R12: Løpende."]
["Økonomi","R13: Feilberegning av antall hyllemeter som er mugginfisert, kaos osv. (genererer mer utgifter). ",3,3,9,null,"T24: Detaljert gjennomgang av all kartlagt arkivmateriale",1,3,3,"T24: Løpende kontakt med konserveringsavdelingen ved IKA Kongsberg.","T24: Prosjektleder og prosjektmedarbeider.","T24: Løpende."]
["Økonomi","R14: Økt sammenblanding av arkiver (tid)",5,3,15,null,"T25: Veiledning til arkivskapere i kommunen. T26: Vise til T3 ",2,3,6,"T25: Avklare behov for veiledning, deretter gi veiledning. T26 som T3.","T25: Prosjektleder og prosjektmedarbeider. T26 som T3.","T25 og T26: Løpende."]
["Økonomi","R15: Skjeggkre ",5,2,10,null,"T27: Undersøke med Anette mulighet for bruke gift, og slippe frysing. Dersom tiltaket er gjennomførbart iverksettes T28: Bekjempelse ved hjelp av gift",5,1,5,"T27 og T28: Bekjempelse med gift er gjennomført av saneringsfirma.","T27 og T28: Saneringsfirma og prosjektmedarbeider. Følges videre opp med løpende kontroll av feller.","T27 og T28: Løpende."]
["HMS","R16: Psykososialt (jobbe alene), stereotypt arbeid",2,4,8,null,"T29: Vise til T8. T30: Inkludering i Dokumentsenterets arbeidsmiljø.",1,3,3,"T29 som T8. T30: Faste møter med prosjektleder/prosjekteier på Dokumentsenteret. Deltakelse i sosiale sammenhenger.","T29 som T8. T30: Prosjektgruppen og ansatte på Dokumentsenteret.","T29: ukentlig eller ved behov. T30: Løpende."]
["Fremdrift/gjennomføringskraft","R17: Endring i kommunens toppledelse med endring av premisser",2,4,8,null,null,2,4,8,"R17: Risiko ikke mulig å kontrollere.","R17: Rådmann og prosjekteier.","R17: Dersom behov."]

{"sheet":"Diagram","index":3,"n_rows":23,"n_cols":3,"rows_kept":23}
["R1: Ikke avslutte prosjektet innenfor tidsrammen (videreføres etter ny finansiering)",5,3]
["R2: Ikke avslutte prosjektet innenfor tidsrammen (prosjektet avsluttes)",12,9]
["R3: Helsemessige forhold på prosjektmedarbeidere rundt arbeidet med muggskadet arkiv.",16,4]
["R4: Ytterligere skade på arkiv som allerede er muggskadet (tid)",5,5]
["R5: Bytte/tap av prosjektmedarbeidere ",10,6]
["R6: Tap av nøkkelpersonell",20,8]
["R7: Informasjonssikkerhet (transport)",10,5]
["R8: Mange har tilgang til dagens fjernarkiv",15,9]
["R9: Kommunen disponerer ingen godkjente spesialrom for arkiv. ",10,5]
["R10: Brann og/eller vannskader",10,5]
["R11: Kritiske omdisponeringer av kommuneøkonomi (tap av prosjektmidler)",4,4]
["R12: Feilberegning av antall hyllemeter (totalt, generering av mer utgifter)",6,6]
["R13: Feilberegning av antall hyllemeter som er mugginfisert, kaos osv. (genererer mer utgifter). ",9,3]
["R14: Økt sammenblanding av arkiver (tid)",15,6]
["R15: Skjeggkre ",10,5]
["R16: Psykososialt (jobbe alene), stereotypt arbeid",8,3]
["R17: Endring i kommunens toppledelse med endring av premisser",8,8]
[]
[]
["Fremdrift/gjennomføringskraft",55,26]
["HMS",24,7]
["Økonomi",49,29]
["Sikkerhet",45,24]

{"sheet":"ROS utskrift","index":4,"n_rows":19,"n_cols":12,"rows_kept":19,"merged":[[0,0,1,0],[0,1,1,1],[0,2,0,4],[0,6,0,8],[0,9,0,11]]}
["Områder","Hva kan gå galt?\nIdentifisert risiko","Hvor galt kan det gå? \nSannsynlighet*konsekvens\nSkala 1-5",null,null,"Hva kan gjøres for å unngå at det kan gå galt?","Er det nok?\nRisiko etter iverksatte tiltak",null,null,"Oppfølging"]
[null,null,"S","K","Risiko","Tiltak","S","K","Risiko","Hva","Ansvar","Frist"]
[{"$f":"ROS!A3","v":"Fremdrift/gjennomføringskraft"},{"$f":"ROS!B3","v":"R1: Ikke avslutte prosjektet innenfor tidsrammen (prosjektet videreføres etter ny finansiering)"},{"$f":"ROS!C3","v":5},{"$f":"ROS!D3","v":1},{"$f":"ROS!E3","v":5},{"$f":"ROS!G3","v":"T1: Tilstrebe større involvering fra arkivskapende enheter. T2: Søke om mer penger. "},{"$f":"ROS!H3","v":3},{"$f":"ROS!I3","v":1},{"$f":"ROS!J3","v":3},{"$f":"ROS!K3","v":"T1: Avtale med aktuelle enheter, gi veiledning og støtte. T2: Av-stemme ramme og finansiering mot prosjektets fremdrift. "},{"$f":"ROS!L3","v":"T1: Prosjektleder og prosjekt-medarbeider. T2: Prosjekteier og prosjektleder."},{"$f":"ROS!M3","v":"T1 og T2: Løpende."}]
[{"$f":"ROS!A4","v":"Fremdrift/gjennomføringskraft"},{"$f":"ROS!B4","v":"R2: Ikke avslutte prosjektet innenfor tidsrammen (prosjektet avsluttes)"},{"$f":"ROS!C4","v":3},{"$f":"ROS!D4","v":4},{"$f":"ROS!E4","v":12},{"$f":"ROS!G4","v":"T3: Prioriteringsplan.  T4: Avviksmelding til arkivverket. T5: Utarbeide statusrapport til rådmannen medio 2021"},{"$f":"ROS!H4","v":3},{"$f":"ROS!I4","v":3},{"$f":"ROS!J4","v":9},{"$f":"ROS!K4","v":"T3: Avlevere kritisk dokumentasjon først. T4: Kun aktuell dersom prosjektet termineres. T5: Rapportere på fremdrift og kostnader."},{"$f":"ROS!L4","v":"T3: Prosjektmedarbeider. T4: prosjektleder. T5: Prosjektleder og prosjekteier."},{"$f":"ROS!M4","v":"T3: Løpende. T4: dersom aktuelt, eno. T5: høst 2021."}]
[{"$f":"ROS!A5","v":"HMS"},{"$f":"ROS!B5","v":"R3: Helsemessige forhold på prosjektmedarbeidere rundt arbeidet med muggskadet arkiv."},{"$f":"ROS!C5","v":4},{"$f":"ROS!D5","v":4},{"$f":"ROS!E5","v":16},{"$f":"ROS!G5","v":"T6: Bruke verneutstyr. T7: Jobbe med det i begrenset tid.  T8: Rutinemessige avsjekk av helsetilstand (fast sak på møte)"},{"$f":"ROS!H5","v":1},{"$f":"ROS!I5","v":4},{"$f":"ROS!J5","v":4},{"$f":"ROS!K5","v":"T6: Påse at prosjektmed-arbeidere benytter innkjøpt verneutstyr. T7: Påse at rutiner følges. T8: Avsjekk på rutinemessige møter."},{"$f":"ROS!L5","v":"T6, T7, T8: Prosjektleder."},{"$f":"ROS!M5","v":"T6, T7, T8: Ukentlig eller ved behov."}]
[{"$f":"ROS!A6","v":"Økonomi"},{"$f":"ROS!B6","v":"R4: Ytterligere skade på arkiv som allerede er muggskadet (tid)"},{"$f":"ROS!C6","v":1},{"$f":"ROS!D6","v":5},{"$f":"ROS!E6","v":5},{"$f":"ROS!G6","v":"T9: Vise til T3. "},{"$f":"ROS!H6","v":1},{"$f":"ROS!I6","v":5},{"$f":"ROS!J6","v":5},{"$f":"ROS!K6","v":"T9 som T3, se over."},{"$f":"ROS!L6","v":"T9 som T3: Prosjektmedarbeider. "},{"$f":"ROS!M6","v":"T9 som T3: Løpende."}]
[{"$f":"ROS!A7","v":"Fremdrift/gjennomføringskraft"},{"$f":"ROS!B7","v":"R5: Bytte/tap av prosjektmedarbeidere "},{"$f":"ROS!C7","v":5},{"$f":"ROS!D7","v":2},{"$f":"ROS!E7","v":10},{"$f":"ROS!G7","v":"T10: Tilstrebe utvidelse av tiltaksperiode gjennom NAV. T11: Forsterke prosjektet med personell fra Dokumentsenteret. "},{"$f":"ROS!H7","v":3},{"$f":"ROS!I7","v":2},{"$f":"ROS!J7","v":6},{"$f":"ROS!K7","v":"T10: Invitere NAV til møte og avklare muligheter til forlengelse og finansiering. T11: utarbeide \"turnus\" hvor personell fra Dokumentsenteret bidrar."},{"$f":"ROS!L7","v":"T10: Prosjektleder. T11: Prosjektmedarbeider og prosjekteier."},{"$f":"ROS!M7","v":"T10 og T11: janaur 2020."}]
[{"$f":"ROS!A8","v":"Fremdrift/gjennomføringskraft"},{"$f":"ROS!B8","v":"R6: Tap av nøkkelpersonell (spisskompetanse, Helle og Jørn Roger)"},{"$f":"ROS!C8","v":5},{"$f":"ROS!D8","v":4},{"$f":"ROS!E8","v":20},{"$f":"ROS!G8","v":"T12: Tilstrebe fast stilling. T13: Regulerte og forutsigbare tilsettingsforhold. T14: Planlegging av allerede varslet permisjon"},{"$f":"ROS!H8","v":2},{"$f":"ROS!I8","v":4},{"$f":"ROS!J8","v":8},{"$f":"ROS!K8","v":"T12: Melde inn behov til rådmann. T13: Ny engasjements-avtale for 2020. T14: Plan ivaretas og følges opp."},{"$f":"ROS!L8","v":"T12, T13 og T14: Prosjekteier."},{"$f":"ROS!M8","v":"T12: våren 2020. T13: September 2019. T14: november 2019 og juli til november 2020."}]
[{"$f":"ROS!A9","v":"Sikkerhet"},{"$f":"ROS!B9","v":"R7: Informasjonssikkerhet (transport)"},{"$f":"ROS!C9","v":2},{"$f":"ROS!D9","v":5},{"$f":"ROS!E9","v":10},{"$f":"ROS!G9","v":"T15: Avtale med transportør. T16: Ansatt deltar i transporten"},{"$f":"ROS!H9","v":1},{"$f":"ROS!I9","v":5},{"$f":"ROS!J9","v":5},{"$f":"ROS!K9","v":"T15: Sørge for signert avtale. T16: avklares dersom behov."},{"$f":"ROS!L9","v":"T15 og T16: Prosjektmedarbeider."},{"$f":"ROS!M9","v":"Ved avleveringer etter plan."}]
[{"$f":"ROS!A10","v":"Sikkerhet"},{"$f":"ROS!B10","v":"R8: Mange har tilgang til dagens fjernarkiv"},{"$f":"ROS!C10","v":5},{"$f":"ROS!D10","v":3},{"$f":"ROS!E10","v":15},{"$f":"ROS!G10","v":"T17: Lage skriftlig instruks. T18: Innskrenke adgangskontroll "},{"$f":"ROS!H10","v":3},{"$f":"ROS!I10","v":3},{"$f":"ROS!J10","v":9},{"$f":"ROS!K10","v":"T17: Avklare myndighetsforhold med assisterende rådmann. Kvalitetssikre instruks, iverksetting. T18: Utarbeide oversikt, sikringstiltak."},{"$f":"ROS!L10","v":"T17: Prosjektgruppen. T18: Prosjektmedarbeider og driftstjenesten."},{"$f":"ROS!M10","v":"T17: september 2019."}]
[{"$f":"ROS!A11","v":"Sikkerhet"},{"$f":"ROS!B11","v":"R9: Kommunen disponerer ingen godkjente spesialrom for arkiv. "},{"$f":"ROS!C11","v":5},{"$f":"ROS!D11","v":2},{"$f":"ROS!E11","v":10},{"$f":"ROS!G11","v":"T19: Vise til T3 T20: Flytte arkiv"},{"$f":"ROS!H11","v":5},{"$f":"ROS!I11","v":1},{"$f":"ROS!J11","v":5},{"$f":"ROS!K11","v":"T19 som T3. T20: Flytte sårbare arkiver til tryggere lokasjoner når dette er gjenomførbart (tilgjengelig plass)."},{"$f":"ROS!L11","v":"T19 som T3. T20: Prosjektmedarbeider."},{"$f":"ROS!M11","v":"T19 som T3: Løpende. T20: Løpende."}]
[{"$f":"ROS!A12","v":"Sikkerhet"},{"$f":"ROS!B12","v":"R10: Brann og/eller vannskader"},{"$f":"ROS!C12","v":2},{"$f":"ROS!D12","v":5},{"$f":"ROS!E12","v":10},{"$f":"ROS!G12","v":"T21: Flytte arkiv til fjernarkivet. T22: Brann- og vannsikring"},{"$f":"ROS!H12","v":1},{"$f":"ROS!I12","v":5},{"$f":"ROS!J12","v":5},{"$f":"ROS!K12","v":"T21: Flytte sårbare arkiver til tryggere lokasjoner når dette er gjenomførbart (tilgjengelig plass). T22: Flytte arkiver opp fra gulv, dekkes til om mulig."},{"$f":"ROS!L12","v":"T21 og T22: Prosjektmedarbeider."},{"$f":"ROS!M12","v":"T21 og T22: Løpende."}]
[{"$f":"ROS!A13","v":"Økonomi"},{"$f":"ROS!B13","v":"R11: Kritiske omdisponeringer av kommuneøkonomi (tap av prosjektmidler)"},{"$f":"ROS!C13","v":1},{"$f":"ROS!D13","v":4},{"$f":"ROS!E13","v":4},{"$f":"ROS!G13","v":"T23: Vise til T3"},{"$f":"ROS!H13","v":1},{"$f":"ROS!I13","v":4},{"$f":"ROS!J13","v":4},{"$f":"ROS!K13","v":"T23 som T3, se over."},{"$f":"ROS!L13","v":"T23: Prosjekteier."},{"$f":"ROS!M13","v":"T23: Dersom behov."}]
[{"$f":"ROS!A14","v":"Økonomi"},{"$f":"ROS!B14","v":"R12: Feilberegning av antall hyllemeter (totalt, generering av mer utgifter)"},{"$f":"ROS!C14","v":2},{"$f":"ROS!D14","v":3},{"$f":"ROS!E14","v":6},{"$f":"ROS!G14","v":0},{"$f":"ROS!H14","v":2},{"$f":"ROS!I14","v":3},{"$f":"ROS!J14","v":6},{"$f":"ROS!K14","v":"R12: Risiko ikke mulig å kontrollere. Eventuelle avvik i beregningsgrunnlaget innarbeides i avleveringsplan."},{"$f":"ROS!L14","v":"R12: Prosjektgruppen."},{"$f":"ROS!M14","v":"R12: Løpende."}]
[{"$f":"ROS!A15","v":"Økonomi"},{"$f":"ROS!B15","v":"R13: Feilberegning av antall hyllemeter som er mugginfisert, kaos osv. (genererer mer utgifter). "},{"$f":"ROS!C15","v":3},{"$f":"ROS!D15","v":3},{"$f":"ROS!E15","v":9},{"$f":"ROS!G15","v":"T24: Detaljert gjennomgang av all kartlagt arkivmateriale"},{"$f":"ROS!H15","v":1},{"$f":"ROS!I15","v":3},{"$f":"ROS!J15","v":3},{"$f":"ROS!K15","v":"T24: Løpende kontakt med konserveringsavdelingen ved IKA Kongsberg."},{"$f":"ROS!L15","v":"T24: Prosjektleder og prosjektmedarbeider."},{"$f":"ROS!M15","v":"T24: Løpende."}]
[{"$f":"ROS!A16","v":"Økonomi"},{"$f":"ROS!B16","v":"R14: Økt sammenblanding av arkiver (tid)"},{"$f":"ROS!C16","v":5},{"$f":"ROS!D16","v":3},{"$f":"ROS!E16","v":15},{"$f":"ROS!G16","v":"T25: Veiledning til arkivskapere i kommunen. T26: Vise til T3 "},{"$f":"ROS!H16","v":2},{"$f":"ROS!I16","v":3},{"$f":"ROS!J16","v":6},{"$f":"ROS!K16","v":"T25: Avklare behov for veiledning, deretter gi veiledning. T26 som T3."},{"$f":"ROS!L16","v":"T25: Prosjektleder og prosjektmedarbeider. T26 som T3."},{"$f":"ROS!M16","v":"T25 og T26: Løpende."}]
[{"$f":"ROS!A17","v":"Økonomi"},{"$f":"ROS!B17","v":"R15: Skjeggkre "},{"$f":"ROS!C17","v":5},{"$f":"ROS!D17","v":2},{"$f":"ROS!E17","v":10},{"$f":"ROS!G17","v":"T27: Undersøke med Anette mulighet for bruke gift, og slippe frysing. Dersom tiltaket er gjennomførbart iverksettes T28: Bekjempelse ved hjelp av gift"},{"$f":"ROS!H17","v":5},{"$f":"ROS!I17","v":1},{"$f":"ROS!J17","v":5},{"$f":"ROS!K17","v":"T27 og T28: Bekjempelse med gift er gjennomført av saneringsfirma."},{"$f":"ROS!L17","v":"T27 og T28: Saneringsfirma og prosjektmedarbeider. Følges videre opp med løpende kontroll av feller."},{"$f":"ROS!M17","v":"T27 og T28: Løpende."}]
[{"$f":"ROS!A18","v":"HMS"},{"$f":"ROS!B18","v":"R16: Psykososialt (jobbe alene), stereotypt arbeid"},{"$f":"ROS!C18","v":2},{"$f":"ROS!D18","v":4},{"$f":"ROS!E18","v":8},{"$f":"ROS!G18","v":"T29: Vise til T8. T30: Inkludering i Dokumentsenterets arbeidsmiljø."},{"$f":"ROS!H18","v":1},{"$f":"ROS!I18","v":3},{"$f":"ROS!J18","v":3},{"$f":"ROS!K18","v":"T29 som T8. T30: Faste møter med prosjektleder/prosjekteier på Dokumentsenteret. Deltakelse i sosiale sammenhenger."},{"$f":"ROS!L18","v":"T29 som T8. T30: Prosjektgruppen og ansatte på Dokumentsenteret."},{"$f":"ROS!M18","v":"T29: ukentlig eller ved behov. T30: Løpende."}]
[{"$f":"ROS!A19","v":"Fremdrift/gjennomføringskraft"},{"$f":"ROS!B19","v":"R17: Endring i kommunens toppledelse med endring av premisser"},{"$f":"ROS!C19","v":2},{"$f":"ROS!D19","v":4},{"$f":"ROS!E19","v":8},{"$f":"ROS!G19","v":0},{"$f":"ROS!H19","v":2},{"$f":"ROS!I19","v":4},{"$f":"ROS!J19","v":8},{"$f":"ROS!K19","v":"R17: Risiko ikke mulig å kontrollere."},{"$f":"ROS!L19","v":"R17: Rådmann og prosjekteier."},{"$f":"ROS!M19","v":"R17: Dersom behov."}]